Cogmind - Beta 13 @@@ ROGUE MODE // 2024.07.31 @ 16:53:32 Player: OctagonalPrism Result: Destroyed by Autobeam Turret with Autobeam Performance ------------- Evolutions (0) 0 Regions Visited (3) 600 Robots Destroyed (21) 105 Value Destroyed (359) 359 Prototype IDs (0) 0 Alien Tech Used (0) 0 Bonus (0) 0 TOTAL SCORE: 1064 Bonus ------- None Cogmind --------- Core Integrity 0/250 Matter 300/300 Energy 200/200 System Corruption 1% Temperature Cool (48) Movement Treading (240) Ox1 Location -10/Subcaves Parts ------- > --- POWER (1) -------- Subdweller Power Source > --- PROPULSION (2) --- Light Treads > --- UTILITY (2) ------ Small Storage Unit Makeshift Light Armor Plating > --- WEAPON (2) ------- Subdweller Beam Cannon > --- INVENTORY (8) ---- Ion Engine Heat Sink Medium Matter Pod (100) Subdweller Optics Peak State ------------ > --- POWER ------------ Subdweller Power Source > --- PROPULSION ------- Light Treads Light Treads > --- UTILITY ---------- Small Storage Unit Makeshift Light Armor Plating > --- WEAPON ----------- Subdweller Beam Cannon Light Assault Rifle > --- INVENTORY -------- Ion Engine Heat Sink Medium Matter Pod Subdweller Optics Light Assault Rifle [Rating: 12] Favorites ----------- Power Ion Engine Engine Ion Engine Propulsion Light Treads Treads Light Treads Wheel Subdweller Monowheel Utility Small Storage Unit Device Structural Scanner Storage Small Storage Unit Protection Makeshift Light Armor Plating Weapon Light Assault Rifle Energy Gun EM Pulse Gun Energy Cannon Subdweller Beam Cannon Ballistic Gun Light Assault Rifle Build | -11 -10 -10 -10 ------- Run | Yrd Mat Min Sub Slots Evolved . | . . . . Power . | . . . . Propulsion . | . . . . Utility . | . . . . Weapon . | . . . . Parts Attached 18 | 6 1 2 9 Power 3 | 1 . . 2 Engine 3 | 1 . . 2 Core . | . . . . Reactor . | . . . . Propulsion 5 | 2 . . 3 Treads 4 | 2 . . 2 Leg . | . . . . Wheel 1 | . . . 1 Hover . | . . . . Flight . | . . . . Utility 4 | 1 1 . 2 Device 2 | . 1 . 1 Storage 1 | 1 . . . Processor . | . . . . Hackware . | . . . . Protection 1 | . . . 1 Artifact . | . . . . Weapon 6 | 2 . 2 2 Energy Gun 1 | 1 . . . Energy Cannon 1 | . . . 1 Ballistic Gun 4 | 1 . 2 1 Ballistic Cannon . | . . . . Launcher . | . . . . Special Weapon . | . . . . Impact Weapon . | . . . . Slashing Weapon . | . . . . Piercing Weapon . | . . . . Special Melee Weapon . | . . . . Unidentified Prototypes . | . . . . Corrupted Parts 1 | . 1 . . System Corruption 1 | . 1 . . Parts Lost 5 | . . 1 4 Power . | . . . . Propulsion 1 | . . . 1 Utility 1 | . . . 1 Weapon 3 | . . 1 2 Highest Loss Streak 3 | . . 1 3 To Critical Strikes . | . . . . Average Slot Usage (%) 88 | . 84 84 94 Engine 14 | . 14 14 14 Treads 19 | . 27 14 20 Wheel 1 | . . . 4 Device 8 | . . 14 7 Storage 14 | . 14 14 14 Protection 2 | . . . 5 Energy Gun 6 | . 14 8 . Energy Cannon 3 | . . . 7 Ballistic Gun 17 | . 13 18 19 Naked Turns . | . . . . Heaviest Build 23 | 14 14 14 23 Greatest Support 40 | 40 40 20 40 Greatest Overweight (x) 1 | 1 . . 1 Average Overweight (x) . | . . . . Largest Inventory Capacity 8 | 8 8 8 8 Average Capacity 7 | 7 8 8 8 Most Carried 6 | 1 4 3 6 Average Carried 3 | . 1 3 4 Final Capacity 8 | 8 8 8 8 Final Carried 4 | 1 3 3 4 Class Distribution -------------------- 69% | Mutant 30% | Scavenger-Mutant Dominant Class ---------------- Mutant | -10/Materials Mutant | -10/Mines Scavenger-Mutant | -10/Subcaves Resources | -11 -10 -10 -10 ----------- Run | Yrd Mat Min Sub Matter Collected 552 | 245 42 120 145 Remotely . | . . . . Salvage Created 517 | . 115 90 312 Parts 48 | . 14 16 18 Haulers Intercepted . | . . . . Recyclers Shooed . | . . . . Parts Field Recycled . | . . . . Retrieved Matter . | . . . . Parts Self-Destructed 10 | . . . 10 Prevented . | . . . . Kills | -11 -10 -10 -10 ------- Run | Yrd Mat Min Sub Combat Hostiles Destroyed 15 | . . 6 9 Guns 11 | . . 6 5 Cannons 3 | . . . 3 Classes Destroyed 8 | . 4 1 3 Worker 1 | . 1 . . Builder 1 | . 1 . . Operator 1 | . 1 . . Turret 1 | . . . 1 Watcher 2 | . 2 . . Swarmer 11 | . . 6 5 Sentry 1 | . . . 1 Subdweller 3 | . . . 3 Best Kill Streak 4 | . 2 3 4 Combat Bots Only 4 | . . 3 4 Max Kills in Single Turn 2 | . 2 1 1 Gunslinging . | . . . . Exploded . | . . . . Melee . | . . . . Uniques/NPCs Destroyed . | . . . . Combat | -11 -10 -10 -10 -------- Run | Yrd Mat Min Sub Hostile Shots Fired 130 | . . 37 93 Missed 42 | . . 9 33 Damage Taken 874 | . . 222 652 Core 253 | . . 48 205 Absorbed by Shields . | . . . . Core Remaining (%) 100 | 100 . . . Volleys Fired 60 | . 9 17 34 Largest 2 | . 2 2 2 Hottest 100 | . 60 60 100 Shots Fired 103 | . 18 25 60 Gun 85 | . 18 25 42 Cannon 18 | . . . 18 Launcher . | . . . . Special . | . . . . Kinetic 69 | . 9 18 42 Thermal 18 | . . . 18 Explosive . | . . . . Electromagnetic 16 | . 9 7 . Robot Hit Streak 16 | . 4 3 16 Robot Miss Streak 3 | . 1 3 2 Penetration Max . | . . . . Secondary Targets . | . . . . Shots Hit Robots 64 | . 13 14 37 Core Hits 29 | . 6 8 15 Critical Kills 2 | . . 1 1 Critical Parts Destroyed . | . . . . Critical Strikes 2 | . . 1 1 Meltdown 1 | . . . 1 Destroy 1 | . . 1 . Melee Attacks . | . . . . Impact . | . . . . Slashing . | . . . . Piercing . | . . . . Sneak Attacks . | . . . . Combat Hostiles . | . . . . Follow-up Attacks . | . . . . Damage Inflicted 846 | . 237 120 489 Guns 569 | . 237 120 212 Cannons 277 | . . . 277 Explosions . | . . . . Melee . | . . . . Ramming . | . . . . Kinetic 406 | . 86 108 212 Thermal 277 | . . . 277 Explosive . | . . . . Electromagnetic 163 | . 151 12 . Impact . | . . . . Slashing . | . . . . Piercing . | . . . . Highest Corruption 1 | . 1 1 1 Average Corruption 1 | . 1 1 1 Corruption Purged . | . . . . Corruption Blocked . | . . . . Effects 7 | . . 6 1 Message Errors 1 | . . 1 . Heat Flow Errors 2 | . . 2 . Energy Discharges 1 | . . 1 . Data Loss (major) 1 | . . 1 . Misfires 1 | . . . 1 Alerts 1 | . . 1 . Overload Shots . | . . . . Overflow Damage 6 | . . . 6 Projectiles 6 | . . . 6 Explosions . | . . . . Melee . | . . . . Knockbacks . | . . . . Impact . | . . . . Kinetic . | . . . . Secondary . | . . . . Self-Inflicted Damage . | . . . . Shots . | . . . . Rammed . | . . . . Targets Rammed . | . . . . Kicked . | . . . . Crushed . | . . . . Highest Temperature 153 | . . 153 76 Average Temperature 43 | . . 61 30 Received Heat Transfer 204 | . . . 204 Siege Activations . | . . . . Robots Corrupted . | . . . . Combat Hostiles . | . . . . Parts Fried 1 | . 1 . . Impact Corruptions . | . . . . Robots Melted 1 | . . . 1 Combat Hostiles 1 | . . . 1 Parts Melted 1 | . . . 1 Heat Transferred 370 | . . . 370 Parts Sabotaged . | . . . . Parts Stolen . | . . . . Parts Stripped . | . . . . Power Chain Reactions . | . . . . Alert | -11 -10 -10 -10 ------- Run | Yrd Mat Min Sub Peak Influence 173 | . 74 173 . Initial 28 | . . 28 . Average 77 | . 36 115 . Maximum Alert Level . | . . . . Low Security (%) 100 | 100 100 100 . Level 1 . | . . . . Level 2 . | . . . . Level 3 . | . . . . Level 4 . | . . . . Level 5 . | . . . . High Security . | . . . . Max Security . | . . . . Squads Dispatched 1 | . 1 . . Investigation . | . . . . Extermination . | . . . . Reinforcement 1 | . 1 . . Assault . | . . . . Garrison . | . . . . Intercept . | . . . . Searches Triggered . | . . . . Construction Impeded . | . . . . Haulers Reinforced . | . . . . Active Scanning Responses . | . . . . Cargo Convoy Interrupts . | . . . . Stealth | -11 -10 -10 -10 --------- Run | Yrd Mat Min Sub Distress Signals . | . . . . Communications Jammed . | . . . . Distress Signals . | . . . . Times Spotted 32 | . 5 6 21 Peak Tracking Total 6 | . 1 3 6 Tactical Retreats 3 | . . . 3 Traps | -11 -10 -10 -10 ------- Run | Yrd Mat Min Sub Traps Triggered . | . . . . Indirectly . | . . . . Trap Hack Attempts . | . . . . Triggered . | . . . . Disarmed . | . . . . Reprogrammed . | . . . . Reused . | . . . . Traps Extracted . | . . . . Installed . | . . . . Triggered . | . . . . Machines | -11 -10 -10 -10 ---------- Run | Yrd Mat Min Sub Machines Disabled 1 | . . . 1 Max in Single Turn 1 | . . . 1 Machines Repaired . | . . . . Machines Dismantled . | . . . . Machines Sabotaged . | . . . . Overloaded Fab Kills . | . . . . Hacking | -11 -10 -10 -10 --------- Run | Yrd Mat Min Sub Machines Accessed 1 | . 1 . . Terminals 1 | . 1 . . Fabricators . | . . . . Repair Stations . | . . . . Recycling Units . | . . . . Scanalyzers . | . . . . Garrison Access . | . . . . Total Hacks 1 | . 1 . . Successful . | . . . . Failed 1 | . 1 . . Catastrophic 1 | . 1 . . Database Lockouts . | . . . . Manual 1 | . 1 . . Terminals 1 | . 1 . . Fabricators . | . . . . Repair Stations . | . . . . Recycling Units . | . . . . Scanalyzers . | . . . . Garrison Access . | . . . . Terminal Hacks . | . . . . Fabricator Hacks . | . . . . Repair Station Hacks . | . . . . Recycling Unit Hacks . | . . . . Scanalyzer . | . . . . Garrison Access Hacks . | . . . . Unauthorized Hacks . | . . . . Terminals . | . . . . Fabricators . | . . . . Repair Stations . | . . . . Recycling Units . | . . . . Scanalyzers . | . . . . Garrison Access . | . . . . Data Cores Recovered . | . . . . Used . | . . . . Hacking Detections 1 | . 1 . . Full Trace Events . | . . . . Feedback Events . | . . . . Feedback Blocked . | . . . . Robot Schematics Acquired . | . . . . Robots Built . | . . . . Authchips . | . . . . Time . | . . . . Total Robot Build Rating . | . . . . Part Schematics Acquired . | . . . . Parts Built . | . . . . Authchips . | . . . . Time . | . . . . Total Part Build Rating . | . . . . Parts Repaired . | . . . . Time . | . . . . Parts Recycled . | . . . . Recycled Matter . | . . . . Retrieved Matter . | . . . . Retrieved Components . | . . . . Parts Scanalyzed . | . . . . Part Schematics Acquired . | . . . . Parts Damaged . | . . . . Bothacking | -11 -10 -10 -10 ------------ Run | Yrd Mat Min Sub Used RIF Installer . | . . . . Robots Hacked . | . . . . Non-combat . | . . . . Combat . | . . . . Robot Hacks Applied . | . . . . Relay Couplers Released . | . . . . Fabnet Peak Effective % . | . . . . Robots Rewired . | . . . . Allies Hacked . | . . . . Hacks Repelled . | . . . . Allies | -11 -10 -10 -10 -------- Run | Yrd Mat Min Sub Total Allies . | . . . . Largest Group . | . . . . Highest-Rated Group . | . . . . Highest-Rated Ally . | . . . . Total Orders . | . . . . Ally Attacks . | . . . . Total Damage . | . . . . Kills . | . . . . Allies Corrupted . | . . . . Allies Melted . | . . . . Intel | -11 -10 -10 -10 ------- Run | Yrd Mat Min Sub Robot Analysis Total . | . . . . Derelict Logs Recovered 1 | . . 1 . Drone Launches . | . . . . Drone Recoveries . | . . . . Exploration | -11 -10 -10 -10 ------------- Run | Yrd Mat Min Sub Turns Passed 1311 | 62 297 439 513 Spaces Moved 729 | 35 166 248 280 Core 4 | 4 . . . Treads 614 | 31 166 248 169 Legs . | . . . . Wheels 111 | . . . 111 Hover . | . . . . Flight . | . . . . Fastest Speed 50 | 50 160 160 110 Average Speed 152 | 151 160 160 142 Slowest Speed 240 | 160 160 160 240 Overloaded Moves . | . . . . Propulsion Burnouts . | . . . . Robots Hopped . | . . . . Cave-ins Triggered . | . . . . Exploration Rate (%) 25 | 4 27 52 19 Regions Visited 3 Branch Regions 2 Pre-discovered Areas . | . . . . Known Exits Taken . | . . . . Unknown Exits Taken 3 | 1 1 1 . Scrap Searched 3 | . . 2 1 Spaces Dug 1 | . . . 1 Terrain Destroyed 4 | . . . 4 Melee . | . . . . Projectile 4 | . . . 4 AOE . | . . . . Terrain Rammed . | . . . . Walls Destroyed . | . . . . Machines Disabled . | . . . . Actions | -11 -10 -10 -10 --------- Run | Yrd Mat Min Sub Total 831 | 41 180 268 342 Wait 15 | . 2 2 11 Move 726 | 34 165 247 280 Hop . | . . . . Pick Up 7 | 1 3 . 3 Fast Attach 11 | 6 . 2 3 Attach 3 | . 1 . 2 Detach 1 | . . . 1 Swap 4 | . . . 4 Drop 4 | . . . 4 Fire 60 | . 9 17 34 Melee . | . . . . Ram . | . . . . Kick . | . . . . Crush . | . . . . Escape Stasis . | . . . . Rewire . | . . . . Trap . | . . . . Miscellaneous . | . . . . Route ------- -11/Scrapyard -10/Materials -10/Mines (discovered 2 exits: [*Mat] / [*Sub]) -10/Subcaves (discovered 1 exit: [*Rec]) History --------- Turn | Location | Event 25 | -11/Scrapyard | Discovered new exit (range 15) 63 | -11/Scrapyard | Entered Materials 193 | -10/Materials | Discovered new exit (range 16) 311 | -10/Materials | Build established: Mutant 360 | -10/Materials | Entered Mines 411 | -10/Mines | Learned Materials stockpile data 427 | -10/Mines | Met a Derelict bent on vengeance 514 | -10/Mines | Discovered new exit (range 11) 781 | -10/Mines | Discovered new exit (range 11) 799 | -10/Mines | Entered Subcaves 837 | -10/Subcaves | Core integrity fell below 50% 1106 | -10/Subcaves | Core integrity fell below 20% 1150 | -10/Subcaves | Build established: Scavenger-Mutant 1263 | -10/Subcaves | Discovered new exit (range 12) 1307 | -10/Subcaves | Lost 3 parts (1n2w) 1312 | -10/Subcaves | Destroyed by Autobeam Turret with Autobeam Last Messages --------------- it. Subatomizers dissect the Disposable Heat Sink. U2-X4H(R) suffers critical hit (Meltdown). Acquired 27 matter. S-10 Pest springs to life. Lgt. Treads destroyed. Lgt. Assault Rifle destroyed. EXIT=FOUND Destroyed Flight Unit. Flight Unit melted. S-10 Pest destroyed. Lgt. Assault Rifle destroyed. S-10 Pest destroyed. Lgt. Ion Engine fries itself beyond repair. S-10 Pest destroyed. Flight Unit fries itself beyond repair. Acquired 8 matter. Flight Unit fries itself beyond repair. Machine disabled. Autobeam Turret destroyed. Map ----- +----------------------------------------------------+ | ?## ## "### ! ##????????????? | | ??# ###### ###?# *%""""""##?##??????????? | | ??# ###??#####???## = #?# #??????????? | | ### ##???#####?## ## ## #??????????? | | ##### #?# ### #??????????? | | ## ##?## ## ##??????????? | | ### ## #???## ##??????????? | | ##### ######## ######## #??????????? | | ????##### ???##% ### ### ##??????????? | | ?####### #### ## #???????????? | | ## #???????????? | | # ## ###???????????? | | ## ### ##????????????? | | ????## ### #?### ### ##???????????? | | ?????# #######???####?#### #???????????? | | ## ##???#####<###### #???????????? | | ##??#"""" """"## #???????????? | | ##?#" " " ## #???????????? | | #?#" t "## #???????????? | | #?# % # #???????????? | | ##### ##?# # #???????????? | | # ????# ####" "## #???????????? | | #?????## #;## ##??# #???????????? | | ??????# ### %%% ;#?## #???????????? | | ??????# #??# % ##?# #???????????? | | ??????## ??## @ ##?## ##??????????? | | ??????? ??# ###??# #??????????? | | ?????? ##????## ## ###??????????? | | ????? ###??????##?###????????????? | | ?????# ### ##??????????????????????????? | | ?????###???## #???????????????????????????? | | ????????????### #???????????????????????????? | | ??????????????##### ##???????????????????????????? | | ??????????????????###????????????????????????????? | | ?????????????????????????????????????????????????? | | ?????????????????????????????????????????????????? | | ?????????????????????????????????????????????????? | | ?????????????????????????????????????????????????? | | ?????????????????????????????????????????????????? | | ?????????????????????????????????????????????????? | | ?????????????????????????????????????????????????? | | ?????????????????????????????????????????????????? | | ?????????????????????????????????????????????????? | | ?????????????????????????????????????????????????? | | ?????????????????????????????????????????????????? | | ?????????????????????????????????????????????????? | | ?????????????????????????????????????????????????? | | ?????????????????????????????????????????????????? | | | | | +----------------------------------------------------+ Best States ------------- Heat Dissipation 25 Energy Generation 15 Energy Capacity 250 Matter Stores 300 Matter Capacity 300 Sight Range 21 Terrain Scan Density 10 Armor Coverage 100 Evasion (%) 40 Recoil Reduction 2 Item Schematics ----------------- None Robot Schematics ------------------ None Fabricated ------------ Nothing Alien Tech Used ----------------- None Achievements -------------- None Challenges ------------ None Game ------ Seed ContainmentBurstMagmablaster Manual? 0 Play Time 00:15:11 Cumulative 53.0 hours Start 2024.07.31 @ 16:40:01 End 2024.07.31 @ 16:53:32 Sessions 1 Manual Loads 0 Difficulty Rogue Special Mode None Game No. 49 Rogue 49 Adventurer 0 Explorer 0 Win Type - Total 0 Types 0/0/0/0/0/0/0/0/0 Lore% 30 Gallery% 40 Achievement% 30 Wizard Run 0 Options --------- Layout 2 ASCII 0 Keyboard 0 Movement Arrows Keybinds 0 Fullscreen 1 Font 16/Terminus Map View 55x47 Zoom Use 0% Tactical HUD 0 Map Filters NONE Filters NONE Steam 1 RUN: bdbd02dc-6aba-453e-b21d-96d7c9834510